Cogmind - Beta 13 --- EXPLORER MODE // 2024.04.03 @ 22:10:40 Player: Gorgonaught Result: Destroyed by G-34 Mercenary with Small Laser Performance ------------- Evolutions (1) 500 Regions Visited (3) 600 Robots Destroyed (12) 60 Value Destroyed (263) 263 Prototype IDs (0) 0 Alien Tech Used (0) 0 Bonus (0) 0 TOTAL SCORE: 1423 Bonus ------- None Cogmind --------- Core Integrity 0/400 Matter 268/300 Energy 100/100 System Corruption 0% Temperature Cool (6) Movement Core (1350) Ox26 Location -9/Materials Parts ------- > --- POWER (2) -------- (None) > --- PROPULSION (2) --- (None) > --- UTILITY (3) ------ Huge Storage Unit Improved Targeting Computer > --- WEAPON (3) ------- (None) > --- INVENTORY (25) --- Aluminum Leg Aluminum Leg Medium Matter Pod (100) ECM Suite Peak State ------------ > --- POWER ------------ Ion Engine Light Ion Engine > --- PROPULSION ------- Flight Unit Flight Unit > --- UTILITY ---------- Signal Interpreter ECM Suite Core Shielding > --- WEAPON ----------- EM Pulse Gun Light Assault Rifle Light Assault Rifle > --- INVENTORY -------- Aluminum Leg Aluminum Leg Medium Matter Pod [Rating: 10] Favorites ----------- Power Ion Engine Engine Ion Engine Propulsion Flight Unit Leg Aluminum Leg Flight Unit Flight Unit Utility Signal Interpreter Device ECM Suite Storage Huge Storage Unit Processor Signal Interpreter Protection Core Shielding Weapon Light Assault Rifle Energy Gun EM Pulse Gun Ballistic Gun Light Assault Rifle Ballistic Cannon Improved Light Cannon Build | -11 -10 -10 -9 ------- Run | Yrd Mat Min Mat Slots Evolved 3 | . 1 . 2 Power 1 | . 1 . . Propulsion . | . . . . Utility 1 | . . . 1 Weapon 1 | . . . 1 Parts Attached 20 | 7 6 1 6 Power 3 | 1 2 . . Engine 3 | 1 2 . . Core . | . . . . Reactor . | . . . . Propulsion 5 | 2 3 . . Treads . | . . . . Leg 2 | 2 . . . Wheel . | . . . . Hover . | . . . . Flight 3 | . 3 . . Utility 6 | 2 . 1 3 Device 2 | 1 . . 1 Storage 1 | . . . 1 Processor 2 | 1 . . 1 Hackware . | . . . . Protection 1 | . . 1 . Artifact . | . . . . Weapon 6 | 2 1 . 3 Energy Gun 1 | . 1 . . Energy Cannon . | . . . . Ballistic Gun 3 | 2 . . 1 Ballistic Cannon 2 | . . . 2 Launcher . | . . . . Special Weapon . | . . . . Impact Weapon . | . . . . Slashing Weapon . | . . . . Piercing Weapon . | . . . . Special Melee Weapon . | . . . . Unidentified Prototypes . | . . . . Parts Lost 9 | . . . 9 Power 2 | . . . 2 Propulsion 2 | . . . 2 Utility 1 | . . . 1 Weapon 4 | . . . 4 Highest Loss Streak 4 | . . . 4 To Critical Strikes . | . . . . Average Slot Usage (%) 63 | . 97 100 50 Engine 6 | . 22 25 . Flight 8 | . 21 25 3 Device 2 | . 12 1 . Storage 7 | . . . 9 Processor 10 | . 12 12 10 Protection 8 | . . 10 9 Energy Gun 1 | . 1 12 . Ballistic Gun 14 | . 23 12 13 Ballistic Cannon 2 | . . . 3 Naked Turns . | . . . . Heaviest Build 90 | 9 13 13 90 Greatest Support 20 | 20 20 8 8 Greatest Overweight (x) 29 | . 2 1 29 Average Overweight (x) 4 | . . 1 17 Largest Inventory Capacity 25 | 5 5 5 25 Average Capacity 18 | 5 5 5 24 Most Carried 7 | 2 5 5 7 Average Carried 3 | . 4 4 3 Final Capacity 25 | 5 5 5 25 Final Carried 5 | . 5 5 4 Class Distribution -------------------- 85% | Hacker-Mutant 12% | Hacker-Gunner Dominant Class ---------------- Hacker-Mutant | -10/Materials Hacker-Mutant | -10/Mines Hacker-Mutant | -9/Materials Resources | -11 -10 -10 -9 ----------- Run | Yrd Mat Min Mat Matter Collected 517 | 214 120 118 65 Remotely . | . . . . Salvage Created 381 | . 139 . 242 Parts 24 | . 10 . 14 Haulers Intercepted . | . . . . Recyclers Shooed 1 | . . . 1 Parts Field Recycled . | . . . . Retrieved Matter . | . . . . Parts Self-Destructed . | . . . . Prevented . | . . . . Kills | -11 -10 -10 -9 ------- Run | Yrd Mat Min Mat Combat Hostiles Destroyed 9 | . 2 . 7 Guns 8 | . 2 . 6 Cannons 1 | . . . 1 Classes Destroyed 5 | . 3 . 2 Recycler 1 | . 1 . . Watcher 2 | . 1 . 1 Swarmer 5 | . 2 . 3 Grunt 3 | . . . 3 Duelist 1 | . . . 1 Best Kill Streak 3 | . 2 . 3 Combat Bots Only 3 | . 2 . 3 Max Kills in Single Turn 1 | . 1 . 1 Gunslinging . | . . . . Exploded . | . . . . Melee . | . . . . Uniques/NPCs Destroyed . | . . . . Combat | -11 -10 -10 -9 -------- Run | Yrd Mat Min Mat Hostile Shots Fired 165 | . 8 . 157 Missed 51 | . 4 . 47 Damage Taken 1123 | . 37 . 1086 Core 416 | . 16 . 400 Absorbed by Shields . | . . . . Redirected to Shielding 50 | . . . 50 Ignored by Resistances 686 | . 15 . 671 Core Remaining (%) 96 | 100 . 93 . Volleys Fired 48 | . 14 . 34 Largest 3 | . 2 . 3 Hottest 80 | . 60 . 80 Shots Fired 82 | . 28 . 54 Gun 75 | . 28 . 47 Cannon 7 | . . . 7 Launcher . | . . . . Special . | . . . . Kinetic 74 | . 27 . 47 Thermal . | . . . . Explosive . | . . . . Electromagnetic 8 | . 1 . 7 Robot Hit Streak 19 | . 5 . 19 Robot Miss Streak 2 | . 2 . 1 Penetration Max . | . . . . Secondary Targets 1 | . . . 1 Max Gunslinging Chain 1 | . . . 1 Shots Hit Robots 61 | . 15 . 46 Core Hits 28 | . 10 . 18 Critical Kills . | . . . . Critical Parts Destroyed 1 | . . . 1 Critical Strikes 1 | . . . 1 Destroy 1 | . . . 1 Melee Attacks . | . . . . Impact . | . . . . Slashing . | . . . . Piercing . | . . . . Sneak Attacks . | . . . . Combat Hostiles . | . . . . Follow-up Attacks . | . . . . Damage Inflicted 678 | . 181 . 497 Guns 514 | . 160 . 354 Cannons 141 | . . . 141 Explosions . | . . . . Melee . | . . . . Ramming 23 | . 21 . 2 Kinetic 553 | . 140 . 413 Thermal . | . . . . Explosive . | . . . . Electromagnetic 102 | . 20 . 82 Impact . | . . . . Slashing . | . . . . Piercing . | . . . . Highest Corruption . | . . . . Average Corruption . | . . . . Corruption Purged . | . . . . Corruption Blocked . | . . . . Overload Shots . | . . . . Overflow Damage . | . . . . Projectiles . | . . . . Explosions . | . . . . Melee . | . . . . Knockbacks 3 | . . . 3 Impact . | . . . . Kinetic 3 | . . . 3 Secondary . | . . . . Self-Inflicted Damage 9 | . 9 . . Shots . | . . . . Rammed 8 | . 4 . 4 Targets Rammed 8 | . 4 . 4 Kicked . | . . . . Crushed . | . . . . Highest Temperature 325 | . 34 . 325 Average Temperature 92 | . 12 . 136 Received Heat Transfer 681 | . . . 681 Effects 1 | . . . 1 Energy Bleed 1 | . . . 1 Siege Activations . | . . . . Robots Corrupted . | . . . . Combat Hostiles . | . . . . Parts Fried . | . . . . Impact Corruptions . | . . . . Robots Melted . | . . . . Combat Hostiles . | . . . . Parts Melted . | . . . . Heat Transferred . | . . . . Parts Sabotaged . | . . . . Parts Stolen . | . . . . Parts Stripped . | . . . . Power Chain Reactions . | . . . . Alert | -11 -10 -10 -9 ------- Run | Yrd Mat Min Mat Peak Influence 122 | . 122 8 105 Initial 8 | . . 8 2 Average 27 | . 57 8 22 Maximum Alert Level . | . . . . Low Security (%) 100 | 100 100 100 100 Level 1 . | . . . . Level 2 . | . . . . Level 3 . | . . . . Level 4 . | . . . . Level 5 . | . . . . High Security . | . . . . Max Security . | . . . . Squads Dispatched 1 | . . . 1 Investigation . | . . . . Extermination . | . . . . Reinforcement 1 | . . . 1 Assault . | . . . . Garrison . | . . . . Intercept . | . . . . Searches Triggered . | . . . . Construction Impeded . | . . . . Haulers Reinforced . | . . . . Active Scanning Responses . | . . . . Cargo Convoy Interrupts . | . . . . Stealth | -11 -10 -10 -9 --------- Run | Yrd Mat Min Mat Distress Signals 1 | . . . 1 Communications Jammed . | . . . . Distress Signals . | . . . . Times Spotted 26 | . 8 . 18 Peak Tracking Total 5 | . 2 . 5 Tactical Retreats 12 | . . . 12 Traps | -11 -10 -10 -9 ------- Run | Yrd Mat Min Mat Traps Triggered 2 | . 2 . . Indirectly . | . . . . Trap Hack Attempts . | . . . . Triggered . | . . . . Disarmed . | . . . . Reprogrammed . | . . . . Reused . | . . . . Traps Extracted . | . . . . Installed . | . . . . Triggered . | . . . . Machines | -11 -10 -10 -9 ---------- Run | Yrd Mat Min Mat Machines Disabled . | . . . . Max in Single Turn . | . . . . Machines Repaired . | . . . . Machines Dismantled . | . . . . Machines Sabotaged . | . . . . Overloaded Fab Kills . | . . . . Hacking | -11 -10 -10 -9 --------- Run | Yrd Mat Min Mat Machines Accessed 1 | . 1 . . Terminals 1 | . 1 . . Fabricators . | . . . . Repair Stations . | . . . . Recycling Units . | . . . . Scanalyzers . | . . . . Garrison Access . | . . . . Total Hacks 1 | . 1 . . Successful 1 | . 1 . . Failed . | . . . . Catastrophic . | . . . . Database Lockouts . | . . . . Manual . | . . . . Terminals 1 | . 1 . . Fabricators . | . . . . Repair Stations . | . . . . Recycling Units . | . . . . Scanalyzers . | . . . . Garrison Access . | . . . . Terminal Hacks 1 | . 1 . . Emergency Access Points 1 | . 1 . . Fabricator Hacks . | . . . . Repair Station Hacks . | . . . . Recycling Unit Hacks . | . . . . Scanalyzer . | . . . . Garrison Access Hacks . | . . . . Unauthorized Hacks . | . . . . Terminals . | . . . . Fabricators . | . . . . Repair Stations . | . . . . Recycling Units . | . . . . Scanalyzers . | . . . . Garrison Access . | . . . . Data Cores Recovered . | . . . . Used . | . . . . Hacking Detections 1 | . 1 . . Full Trace Events . | . . . . Feedback Events . | . . . . Feedback Blocked . | . . . . Robot Schematics Acquired . | . . . . Robots Built . | . . . . Authchips . | . . . . Time . | . . . . Total Robot Build Rating . | . . . . Part Schematics Acquired . | . . . . Parts Built . | . . . . Authchips . | . . . . Time . | . . . . Total Part Build Rating . | . . . . Parts Repaired . | . . . . Time . | . . . . Parts Recycled . | . . . . Recycled Matter . | . . . . Retrieved Matter . | . . . . Retrieved Components . | . . . . Parts Scanalyzed . | . . . . Part Schematics Acquired . | . . . . Parts Damaged . | . . . . Bothacking | -11 -10 -10 -9 ------------ Run | Yrd Mat Min Mat Used RIF Installer . | . . . . Robots Hacked . | . . . . Non-combat . | . . . . Combat . | . . . . Robot Hacks Applied . | . . . . Relay Couplers Released . | . . . . Fabnet Peak Effective % . | . . . . Robots Rewired . | . . . . Allies Hacked . | . . . . Hacks Repelled . | . . . . Allies | -11 -10 -10 -9 -------- Run | Yrd Mat Min Mat Total Allies . | . . . . Largest Group . | . . . . Highest-Rated Group . | . . . . Highest-Rated Ally . | . . . . Total Orders . | . . . . Ally Attacks . | . . . . Total Damage . | . . . . Kills . | . . . . Allies Corrupted . | . . . . Allies Melted . | . . . . Intel | -11 -10 -10 -9 ------- Run | Yrd Mat Min Mat Robot Analysis Total . | . . . . Derelict Logs Recovered 1 | . . 1 . Drone Launches . | . . . . Drone Recoveries . | . . . . Exploration | -11 -10 -10 -9 ------------- Run | Yrd Mat Min Mat Turns Passed 3076 | 84 561 214 2217 Spaces Moved 865 | 63 423 181 198 Core 105 | 9 . . 96 Treads . | . . . . Legs 108 | 54 54 . . Wheels . | . . . . Hover . | . . . . Flight 652 | . 369 181 102 Fastest Speed 50 | 50 117 117 117 Average Speed 330 | 110 117 117 1051 Slowest Speed 1640 | 120 210 117 1640 Overloaded Moves . | . . . . Propulsion Burnouts . | . . . . Robots Hopped . | . . . . Cave-ins Triggered . | . . . . Exploration Rate (%) 33 | 5 56 54 17 Regions Visited 3 Branch Regions 1 Pre-discovered Areas . | . . . . Known Exits Taken 3 | 1 1 1 . Unknown Exits Taken . | . . . . Scrap Searched . | . . . . Spaces Dug . | . . . . Terrain Destroyed . | . . . . Melee . | . . . . Projectile . | . . . . AOE . | . . . . Terrain Rammed . | . . . . Walls Destroyed . | . . . . Machines Disabled . | . . . . Actions | -11 -10 -10 -9 --------- Run | Yrd Mat Min Mat Total 971 | 77 463 183 248 Wait 7 | 1 5 . 1 Move 862 | 62 422 180 198 Hop . | . . . . Pick Up 20 | 7 8 1 4 Fast Attach . | . . . . Attach 13 | 7 1 . 5 Detach . | . . . . Swap 7 | . 5 1 1 Drop 6 | . 4 1 1 Fire 48 | . 14 . 34 Melee . | . . . . Ram 8 | . 4 . 4 Kick . | . . . . Crush . | . . . . Escape Stasis . | . . . . Rewire . | . . . . Trap . | . . . . Miscellaneous . | . . . . Route ------- -11/Scrapyard -10/Materials (discovered 2 exits: *Mat / *Min) -10/Mines -9/Materials History --------- Turn | Location | Event 4 | -11/Scrapyard | Identified exit to Materials 4 | -11/Scrapyard | Discovered exit to Materials (range 15) 85 | -11/Scrapyard | Entered Materials 85 | -10/Materials | Evolved 1 slot: Power x1 245 | -10/Materials | Identified exit to Materials 245 | -10/Materials | Discovered exit to Materials (range 16) 314 | -10/Materials | Build established: Hacker-Mutant 598 | -10/Materials | Identified exit to Mines 598 | -10/Materials | Discovered exit to Mines (range 15) 646 | -10/Materials | Entered Mines 834 | -10/Mines | Learned Materials trap positions 845 | -10/Mines | Discovered exit to Materials (range 10) 860 | -10/Mines | Entered Materials 860 | -9/Materials | Evolved 2 slots: Utility x1, Weapon x1 861 | -9/Materials | Loaded intel: 10 trap records 963 | -9/Materials | Lost 4 parts (2p1n1w) 2930 | -9/Materials | Build established: Hacker-Gunner 3018 | -9/Materials | Core integrity fell below 50% 3058 | -9/Materials | Core integrity fell below 20% 3069 | -9/Materials | Lost 3 parts (1u2w) 3077 | -9/Materials | Destroyed by G-34 Mercenary with Small Laser Last Messages --------------- 03029_ K-01 Serf cleans the Purification Channel. 03038_ Core Shielding destroyed. 03043_ Slammed into G-34 Mercenary. 03043_ R-06 Scavenger collects Terrain Scan Processor. 03043_ K-01 Serf cleans the Purification Channel. 03047_ R-06 Scavenger collects Welding Torch. 03048_ K-01 Serf cleans the Purification Channel. 03052_ R-06 Scavenger collects Melee Analysis Suite. 03053_ K-01 Serf collects debris. 03057_ Slammed into G-34 Mercenary. 03058_ Acquired 1 matter. 03058_ K-01 Serf collects debris. 03070_ Slammed into G-34 Mercenary. 03075_ R-06 Scavenger collects Imp. Aluminum Leg. Map ----- +----------------------------------------------------+ | ?????????????# # / ""?? | | ?????????????# # #####??????? | | ?????????????# # #??????????? | | ?????????????# # #???????#### | | ?????????????# # # ??????# | | ?????????????# # % # ??????# | | ?????????????#"# ######### ! | | ????????????## + ! | | ????????????+ #### ! | | ????????????# #??#### | | ???????+##### #?????? | | ???? #?????? | | ??? #?????? | | ???? ##+##### #?????? | | ????????????# #?????? | | ????????????# #?????? | | ????????????# #?????? | | ????????????# ######### u #?????? | | ????????????# #?????#### #################?????? | | ????????????# ?????????# # ####??????????? | | ????????????#??????????#!% #########?????????????? | | ???????????????????????# %#?????????????????????? | | ???????????????????????#% %#?????????????????????? | | ???????????????????????# %#?????????????????????? | | ???????????????????????# r%#?????????????????????? | | ???????????????????????# @g#?????????????????????? | | ???????????????????????# g#?????????????????????? | | ?????????????????????? a #?????????????????????? | | ????????????????????? k #?????????????????????? | | ???????????????????? #?????????????????????? | | ?????????????????? """ #?????????????????????? | | ?????????????????"""""" #?????????????????????? | | ????????????????"""" " % ?????????????????????? | | ??????????????????? ?????????????????????? | | ??????????????????? ?????????????????????? | | ?????????????????? #????????????????????? | | ???????????????????? #????????????????????? | | ???????????????????? t????????????????????? | | ?????????????????^?? #######????????????????????? | | ?????????????????^??? ???????????????????????????? | | ?????????????????????????????????????????????????? | | ?????????????????????????????????????????????????? | | ?????????????????????????????????????????????????? | | ?????????????????????????????????????????????????? | | ?????????????????????????????????????????????????? | | ?????????????????????????????????????????????????? | | ?????????????????????????????????????????????????? | | ?????????????????????????????????????????????????? | | ?????????????????????????????????????????????????? | | ?????????????????????????????????????????????????? | +----------------------------------------------------+ Best States ------------- Heat Dissipation 28 Energy Generation 15 Energy Capacity 275 Matter Stores 300 Matter Capacity 300 Sight Range 16 Terrain Scan Density 10 ECM Strength 1 Resistance: KI 35 Resistance: TH 35 Resistance: EX 35 Resistance: EM 35 Resistance: I 35 Resistance: S 35 Resistance: P 35 Core Shielding 20 Evasion (%) 55 Targeting Accuracy 6 Offensive Hacking 20 Item Schematics ----------------- None Robot Schematics ------------------ None Fabricated ------------ Nothing Alien Tech Used ----------------- None Achievements -------------- None Challenges ------------ None Game ------ Seed SupersonicSubdwellerBoregun Manual? 0 Play Time 00:24:47 Cumulative 6.3 hours Start 2024.04.03 @ 21:42:45 End 2024.04.03 @ 22:10:40 Sessions 1 Manual Loads 0 Difficulty Explorer Special Mode None Game No. 9 Rogue 1 Adventurer 1 Explorer 7 Win Type - Total 0 Types 0/0/0/0/0/0/0/0/0 Lore% 1 Gallery% 7 Achievement% 7 Wizard Run 0 Options --------- Layout 1 ASCII 0 Keyboard 0 Movement Numpad Keybinds 0 Fullscreen 1 Font 24/Smallcaps Map View 50x35 Zoom Use 0% Tactical HUD 1 Map Filters NONE Filters NONE Steam 1 RUN: a287ebce-2de6-4c4c-9ef2-9b8237b7a640